bitfinex-derivatives/quotes_BTCF0:USTF0_20240824
["timestamp","ask_amount","ask_price","bid_price","bid_amount"]
[1724462696707,0.08653797,63749.0,63748.0,0.00611134]
[1724462697414,0.08653797,63749.0,63748.0,0.06868357]
[1724462698016,0.08653797,63749.0,63748.0,0.00611134]
[1724462698708,0.08653797,63749.0,63748.0,0.06868871]
[1724462699115,0.13312782,63749.0,63748.0,0.00611134]
[1724462699413,0.08653797,63749.0,63748.0,0.00611134]
[1724462699915,0.08653797,63749.0,63742.0,0.07815476]
[1724462699916,1.09889867,63749.0,63742.0,0.07815476]
[1724462700117,0.62741421,63743.0,63735.0,0.07815476]
[1724462700410,0.078383,63737.0,63736.0,0.0452]
[1724462700601,0.439183,63737.0,63736.0,0.0452]
[1724462700807,0.439183,63737.0,63736.0,0.16459569]
[1724462701003,0.439183,63737.0,63736.0,0.0452]
[1724462701212,0.439183,63737.0,63732.0,0.0782524]
[1724462701213,0.3608,63737.0,63732.0,0.0782524]
[1724462701517,0.078389,63732.0,63731.0,0.0782524]
[1724462701714,0.07839,63731.0,63730.0,0.0782524]
[1724462701909,0.07839,63731.0,63730.0,0.11940957]
[1724462702616,4e-05,63731.0,63730.0,0.11940957]
[1724462703716,0.3609287,63736.0,63731.0,0.54911]
[1724462703915,0.3609287,63736.0,63733.0,0.09383909]
[1724462704123,0.3609287,63736.0,63734.0,0.16770957]
[1724462704418,0.078386,63735.0,63734.0,0.0483]
[1724462704612,0.078386,63735.0,63734.0,0.24590243]
[1724462705012,0.078386,63735.0,63734.0,0.16770321]
[1724462706316,0.079386,63735.0,63734.0,0.16770321]
[1724462706523,0.001,63735.0,63734.0,0.16770321]
[1724462706907,0.079381,63735.0,63734.0,0.16770321]
[1724462707108,0.080381,63735.0,63734.0,0.24591654]
[1724462707312,0.080381,63735.0,63734.0,0.16770321]
[1724462709128,0.080381,63735.0,63734.0,0.16770105]
[1724462711517,0.00023533,63745.0,63734.0,0.16770105]
[1724462711725,0.00023533,63745.0,63738.0,0.07822905]
[1724462711912,0.078372,63743.0,63739.0,0.2474262]
[1724462712226,0.078372,63743.0,63740.0,0.16728978]
[1724462712525,0.078372,63743.0,63742.0,0.07823368]
[1724462713430,0.079372,63743.0,63742.0,0.11939543]
[1724462713617,0.001,63743.0,63742.0,0.27600748]
[1724462713922,0.001,63743.0,63742.0,0.078373]
[1724462714429,0.001,63743.0,63742.0,0.27600791]
[1724462714723,0.002,63743.0,63742.0,0.51741216]
[1724462714930,0.002,63743.0,63742.0,0.439173]
[1724462715224,0.04661421,63752.0,63743.0,0.47064]
[1724462715421,0.04661421,63753.0,63747.0,0.078365]
[1724462715722,0.078359,63753.0,63748.0,0.126965]
[1724462715915,0.078359,63753.0,63749.0,0.078364]
[1724462716123,0.04661421,63754.0,63748.0,0.0486]
[1724462716523,0.001,63752.0,63748.0,0.0486]
[1724462716726,0.002,63752.0,63748.0,0.0486]
[1724462716921,4e-05,63749.0,63748.0,0.126965]
[1724462717327,4e-05,63749.0,63748.0,0.997565]
[1724462717624,4e-05,63749.0,63748.0,1.358365]
[1724462718035,4e-05,63749.0,63748.0,1.47775055]
[1724462718333,4e-05,63749.0,63748.0,1.358365]
[1724462718625,0.001,63752.0,63751.0,0.078362]
[1724462719023,0.04661421,63756.0,63755.0,0.078357]
[1724462719328,0.00023533,63757.0,63756.0,0.078356]
[1724462719526,0.00023533,63757.0,63756.0,0.128256]
[1724462719734,0.00023533,63757.0,63756.0,0.998816]
[1724462720026,0.00023533,63757.0,63756.0,0.598816]
[1724462720725,0.00323533,63757.0,63756.0,0.598816]
[1724462721430,0.00423533,63757.0,63756.0,0.598816]
[1724462722027,0.00423533,63757.0,63756.0,0.998816]
[1724462725846,0.00423533,63757.0,63756.0,0.47056]
[1724462726132,0.078357,63755.0,63754.0,0.3608]
[1724462726329,0.078357,63755.0,63754.0,0.40768913]
[1724462726529,0.078357,63755.0,63754.0,0.3608]
[1724462726831,0.078397,63755.0,63754.0,0.3608]
[1724462727429,0.079397,63755.0,63754.0,0.3608]
[1724462727624,0.078358,63754.0,63753.0,0.04688913]
[1724462727833,0.12488709,63754.0,63753.0,0.04688913]
[1724462728531,0.12488709,63754.0,63749.0,0.3608]
[1724462728532,4e-05,63754.0,63751.0,0.04688913]
[1724462728723,0.04656801,63754.0,63751.0,0.04688913]
[1724462728920,0.04652801,63753.0,63751.0,0.04688913]
[1724462729127,0.078361,63752.0,63751.0,0.04688913]
[1724462729325,0.078362,63751.0,63750.0,0.04688913]
[1724462729620,0.156724,63751.0,63749.0,0.0404451]
[1724462729825,0.0469,63750.0,63745.0,0.04068043]
[1724462730128,0.04652423,63748.0,63745.0,0.00023533]
[1724462730838,0.078408,63746.0,63745.0,0.00023533]
[1724462731427,0.439208,63746.0,63745.0,0.00023533]
[1724462731936,0.48673195,63746.0,63745.0,0.00023533]
[1724462732236,0.440208,63746.0,63745.0,0.00023533]
[1724462732629,0.48673195,63746.0,63745.0,0.00023533]
[1724462733028,0.48773195,63746.0,63745.0,0.00023533]
[1724462733432,0.441208,63746.0,63745.0,0.00023533]
[1724462733633,0.06202779,63753.0,63746.0,0.4706]
[1724462733939,0.04652205,63754.0,63751.0,0.3608]
[1724462734130,0.3608,63756.0,63748.0,0.078366]
[1724462734131,0.04652205,63753.0,63748.0,0.078366]
[1724462734732,0.04652205,63753.0,63747.0,0.4554]
[1724462734733,0.04652205,63753.0,63749.0,0.078364]
[1724462734927,0.04652205,63751.0,63750.0,0.078363]
[1724462735130,0.04652205,63752.0,63751.0,0.078362]
[1724462735336,0.001,63753.0,63747.0,0.4554]
[1724462735538,0.06226312,63757.0,63749.0,0.3608]
[1724462735732,0.00023533,63757.0,63756.0,0.3608]
[1724462735932,0.00023533,63757.0,63756.0,0.839156]
[1724462736232,0.00023533,63757.0,63756.0,0.909756]
[1724462736539,0.04676934,63757.0,63756.0,1.309756]
[1724462736934,0.00023533,63757.0,63756.0,1.309756]
[1724462737329,0.00723533,63757.0,63756.0,1.309756]
[1724462737530,0.05376291,63757.0,63756.0,1.309756]
[1724462737841,0.00723533,63757.0,63756.0,1.309756]
[1724462738036,0.05376291,63757.0,63756.0,1.309756]
[1724462738338,0.05576291,63757.0,63756.0,1.309756]
[1724462738929,0.45406199,63774.0,63756.0,1.309756]
[1724462738930,0.06202779,63766.0,63756.0,1.2314]
[1724462739137,0.06202779,63766.0,63765.0,0.3608]
[1724462739339,0.02540219,63774.0,63766.0,0.078343]
[1724462739340,0.06202779,63767.0,63766.0,0.078343]
[1724462739637,0.06205208,63767.0,63766.0,0.078343]
[1724462740043,0.06205208,63767.0,63766.0,0.078383]
[1724462740341,0.00023533,63773.0,63771.0,0.078337]
[1724462740537,0.00023533,63773.0,63771.0,0.439137]
[1724462740738,0.02540421,63772.0,63771.0,0.439137]
[1724462741338,0.00023533,63773.0,63771.0,0.439137]
[1724462741637,0.02540118,63772.0,63771.0,0.439137]
[1724462741840,0.03940118,63772.0,63771.0,0.439137]
[1724462742531,0.03940118,63772.0,63771.0,0.440137]
[1724462742936,0.014,63772.0,63771.0,0.440137]
[1724462743129,0.028,63772.0,63771.0,0.440137]
[1724462743731,0.0900677,63772.0,63771.0,0.001]
[1724462743943,0.13173666,63772.0,63771.0,0.001]
[1724462744139,0.106336,63772.0,63771.0,0.001]
[1724462745343,0.092336,63772.0,63768.0,0.078341]
[1724462745549,0.07757416,63771.0,63768.0,0.078341]
[1724462745943,0.06202664,63770.0,63768.0,0.078341]
[1724462746140,4e-05,63769.0,63768.0,0.078341]
[1724462746348,0.078342,63767.0,63766.0,4e-05]
[1724462747037,0.078382,63767.0,63766.0,4e-05]
[1724462747242,0.128282,63767.0,63766.0,4e-05]
[1724462747743,0.04994,63767.0,63766.0,4e-05]
[1724462748747,0.06394,63767.0,63766.0,4e-05]
[1724462749637,0.142282,63767.0,63766.0,4e-05]
[1724462750346,0.153282,63767.0,63766.0,4e-05]
[1724462753144,0.21530631,63767.0,63766.0,4e-05]
[1724462753656,0.153282,63767.0,63766.0,4e-05]
[1724462753955,0.21530103,63767.0,63766.0,4e-05]
[1724462754250,0.153282,63767.0,63766.0,4e-05]
[1724462754550,0.103382,63767.0,63766.0,4e-05]
[1724462754953,0.103382,63767.0,63766.0,0.078383]
[1724462757458,0.02504,63767.0,63766.0,0.078383]
[1724462762464,0.0870823,63767.0,63766.0,0.078383]
[1724462762767,0.02504,63767.0,63766.0,0.078383]
[1724462763865,0.02504,63767.0,63766.0,0.439183]
[1724462765758,0.10261416,63767.0,63766.0,0.439183]
[1724462766068,0.00594947,63773.0,63766.0,0.76084]
[1724462766369,0.07760079,63779.0,63778.0,0.078329]
[1724462766559,0.07760079,63782.0,63778.0,0.3608]
[1724462766754,0.09326199,63784.0,63783.0,0.078322]
[1724462767164,0.02539847,63784.0,63778.0,0.3608]
[1724462767465,0.02536212,63783.0,63782.0,0.22]
[1724462767660,0.07759516,63785.0,63782.0,0.22]
[1724462767967,0.07759516,63785.0,63784.0,0.439121]
[1724462768164,0.09326199,63787.0,63784.0,0.3608]
[1724462768360,0.09326199,63787.0,63786.0,0.078319]
[1724462768761,0.00023533,63790.0,63789.0,0.078315]
[1724462770967,0.00323533,63790.0,63789.0,0.079315]
[1724462771472,0.01623533,63790.0,63789.0,0.080315]
[1724462771768,0.01623533,63790.0,63789.0,0.080355]
[1724462773763,0.01623533,63790.0,63789.0,0.950635]
[1724462773961,0.09374453,63790.0,63789.0,0.950635]
[1724462774265,0.01623533,63790.0,63789.0,0.950635]
[1724462774860,0.01323533,63790.0,63789.0,0.949635]
[1724462775168,0.01323533,63790.0,63789.0,0.950635]
[1724462775169,0.02023533,63790.0,63789.0,0.950635]
[1724462775469,0.02023533,63790.0,63789.0,0.949635]
[1724462775470,0.00723533,63790.0,63789.0,0.949635]
[1724462775666,0.07749641,63795.0,63789.0,0.949635]
[1724462775667,0.19300592,63796.0,63789.0,0.950635]
[1724462775867,0.07748684,63800.0,63795.0,0.823427]
[1724462776167,0.4098,63817.0,63795.0,0.823427]
[1724462776168,0.09298421,63802.0,63799.0,0.22]
[1724462776370,0.09298421,63802.0,63801.0,0.4391]
[1724462776559,0.09298421,63804.0,63803.0,0.078298]
[1724462776964,0.07743497,63806.0,63803.0,0.078298]
[1724462777172,0.12643063,63805.0,63803.0,0.078298]
[1724462777374,0.07743063,63804.0,63803.0,0.078298]
[1724462777673,0.049,63805.0,63803.0,0.078298]
[1724462778358,0.049,63805.0,63804.0,4e-05]
[1724462779260,0.051,63805.0,63804.0,4e-05]
[1724462779666,0.049,63805.0,63804.0,4e-05]
[1724462779868,0.051,63805.0,63804.0,0.00104]
[1724462780267,0.129295,63805.0,63804.0,0.00104]
[1724462780767,0.129295,63805.0,63804.0,0.00204]
[1724462780768,0.133295,63805.0,63804.0,0.00204]
[1724462781882,0.078297,63804.0,63788.0,0.344216]
[1724462782179,0.04640786,63791.0,63787.0,0.3608]
[1724462782473,0.06187715,63794.0,63787.0,0.3608]
[1724462782474,0.04640786,63790.0,63789.0,0.078315]
[1724462782662,0.07734644,63792.0,63791.0,0.078312]
[1724462782863,0.06187814,63793.0,63791.0,0.078312]
[1724462783075,0.06187814,63793.0,63792.0,0.078311]
[1724462783274,0.07734619,63793.0,63792.0,0.078311]
[1724462783571,0.07734619,63795.0,63788.0,0.227]
[1724462783771,0.06188179,63796.0,63794.0,0.22]
[1724462783979,0.06188201,63797.0,63795.0,0.0499]
[1724462784174,0.00023514,63798.0,63795.0,0.0499]
[1724462784474,0.02539998,63797.0,63796.0,0.078306]
[1724462785071,0.02739998,63797.0,63796.0,0.078306]
[1724462785670,0.00023514,63798.0,63797.0,0.078305]
[1724462786177,0.00123514,63798.0,63797.0,0.078305]
[1724462786475,0.00123514,63798.0,63797.0,0.078345]
[1724462786877,0.02863564,63798.0,63797.0,0.078345]
[1724462787078,0.00323514,63798.0,63797.0,4e-05]
[1724462787274,0.08153914,63798.0,63797.0,4e-05]
[1724462787576,0.03263132,63798.0,63797.0,0.078345]
[1724462787876,0.00723514,63798.0,63797.0,0.078345]
[1724462788073,0.03263086,63798.0,63797.0,0.078345]
[1724462788679,0.439938,63803.0,63797.0,0.87028]
[1724462788680,0.06193701,63799.0,63797.0,0.87028]
[1724462788879,0.06193701,63800.0,63799.0,0.078303]
[1724462789078,0.06193701,63802.0,63798.0,0.22]
[1724462789281,0.09281573,63805.0,63799.0,0.3608]
[1724462789476,0.09281573,63805.0,63804.0,0.078297]
[1724462789687,0.09281573,63805.0,63804.0,0.839097]
[1724462789881,0.09281573,63805.0,63804.0,1.309297]
[1724462790072,0.09281573,63806.0,63805.0,0.078295]
[1724462790483,0.09281573,63806.0,63805.0,0.548455]
[1724462790777,0.09281573,63806.0,63805.0,0.548495]
[1724462790978,0.07737506,63809.0,63808.0,0.078292]
[1724462791481,0.07737506,63809.0,63805.0,0.0012]
[1724462791482,0.07737506,63810.0,63809.0,0.078291]
[1724462791883,0.07737506,63810.0,63805.0,0.36184]
[1724462791884,0.00023514,63811.0,63810.0,0.078289]
[1724462792583,0.00023514,63811.0,63810.0,0.078329]
[1724462793075,0.00123514,63811.0,63810.0,0.126129]
[1724462793886,0.00123514,63811.0,63810.0,0.596289]
[1724462794482,0.00123514,63811.0,63810.0,1.485178]
[1724462794982,0.12509903,63825.0,63824.0,0.078272]
[1724462795183,0.15535677,63825.0,63824.0,0.078272]
[1724462795388,0.06861662,63825.0,63824.0,0.078272]
[1724462795580,0.03025774,63825.0,63824.0,0.078272]
[1724462795781,0.03025774,63825.0,63824.0,0.078312]
[1724462795981,0.10852874,63825.0,63824.0,4e-05]
[1724462796583,0.10852908,63825.0,63824.0,4e-05]
[1724462796783,0.14688839,63825.0,63824.0,4e-05]
[1724462797081,0.14988839,63825.0,63824.0,0.00104]
[1724462797586,0.03325812,63825.0,63824.0,0.00104]
[1724462797789,0.03325812,63825.0,63824.0,0.00204]
[1724462797989,0.15714225,63825.0,63824.0,0.00204]
[1724462798187,0.07160835,63825.0,63824.0,0.00204]
[1724462798586,0.12689752,63825.0,63824.0,0.00204]
[1724462798787,0.03325812,63825.0,63824.0,0.00204]
[1724462799891,0.47232912,63825.0,63824.0,0.00204]
[1724462800280,0.51067986,63825.0,63824.0,0.00204]
[1724462800795,1.26409812,63825.0,63818.0,0.00023514]
[1724462800989,0.03025812,63824.0,63818.0,0.00023514]
[1724462801196,0.3608,63819.0,63818.0,0.00023514]
[1724462801591,0.36084,63819.0,63818.0,0.00023514]
[1724462801791,0.439118,63819.0,63818.0,0.00023514]
[1724462801987,0.439118,63819.0,63818.0,0.00123514]
[1724462802189,0.46937073,63819.0,63818.0,0.00123514]
[1724462802394,0.46937073,63819.0,63818.0,0.00223514]
[1724462802896,0.442118,63819.0,63818.0,0.00223514]
[1724462803092,0.47237071,63819.0,63818.0,0.00223514]
[1724462803495,0.57775885,63819.0,63818.0,0.00223514]
[1724462803690,0.60316371,63819.0,63818.0,0.00223514]
[1724462804698,0.57290446,63819.0,63818.0,0.00223514]
[1724462805091,0.54750614,63819.0,63818.0,0.00223514]
[1724462806795,0.55050614,63819.0,63818.0,0.00223514]
[1724462808300,0.442118,63819.0,63818.0,0.00223514]
[1724462812297,1.390476,63819.0,63818.0,0.00223514]
[1724462812495,0.078286,63813.0,63794.0,0.3608]
[1724462812704,0.3608,63803.0,63794.0,0.3608]
[1724462812905,0.3608,63803.0,63790.0,0.0908]
[1724462813302,0.078306,63797.0,63791.0,0.078312]
[1724462813594,0.3608,63795.0,63791.0,0.078312]
[1724462814000,4e-05,63792.0,63791.0,0.078312]
[1724462814306,0.00017945,63792.0,63791.0,0.078312]
[1724462815115,0.00017945,63792.0,63791.0,0.089312]
[1724462815609,0.00017945,63792.0,63791.0,0.100312]
[1724462816201,0.00017945,63792.0,63791.0,0.096312]
[1724462817106,0.00017945,63792.0,63791.0,0.095312]
[1724462817612,0.00017945,63792.0,63791.0,0.456112]
[1724462817908,0.00017945,63792.0,63791.0,0.445112]
[1724462818108,0.00017945,63792.0,63791.0,0.452112]
[1724462818313,0.06217229,63792.0,63791.0,0.452112]
[1724462818509,0.00017945,63792.0,63791.0,0.452112]
[1724462826414,0.00017945,63792.0,63791.0,1.322392]
[1724462827906,0.00017945,63792.0,63791.0,1.400705]
[1724462827907,0.04668133,63792.0,63791.0,1.400705]
[1724462828108,0.00017945,63792.0,63791.0,1.400705]
[1724462828912,0.00017945,63792.0,63791.0,0.452112]
[1724462830208,0.0776705,63792.0,63791.0,0.452112]
[1724462830509,0.00017945,63792.0,63791.0,0.3738]
[1724462831021,0.00017945,63792.0,63790.0,0.00023514]
[1724462831217,0.07771282,63792.0,63790.0,0.00023514]
[1724462831513,0.0464,63791.0,63790.0,0.00023514]
[1724462831707,0.07179622,63791.0,63790.0,0.00023514]
[1724462831908,0.15014922,63791.0,63790.0,0.00023514]
[1724462832518,0.15014922,63791.0,63790.0,0.00723514]
[1724462833013,0.595033,63791.0,63790.0,0.00023514]
[1724462833316,0.6725556,63791.0,63790.0,0.00723514]
[1724462833507,0.2431419,63791.0,63790.0,0.00723514]
[1724462834012,0.2431419,63791.0,63790.0,0.01423514]
[1724462834212,0.15015263,63791.0,63790.0,0.01423514]
[1724462834919,0.15115263,63791.0,63790.0,0.01423514]
[1724462836519,0.125753,63791.0,63790.0,0.01423514]
[1724462837312,0.15115109,63791.0,63790.0,0.01423514]
[1724462837719,0.125753,63791.0,63790.0,0.01423514]
[1724462838423,0.15114753,63791.0,63790.0,0.01423514]
[1724462839018,0.125753,63791.0,63790.0,0.01423514]
[1724462839426,0.15115107,63791.0,63790.0,0.01423514]
[1724462839925,0.486553,63791.0,63790.0,0.01423514]
[1724462840228,0.51195109,63791.0,63790.0,0.01423514]
[1724462841012,0.125753,63791.0,63790.0,0.01423514]
[1724462841415,0.15115079,63791.0,63790.0,0.01423514]
[1724462841613,0.2033498,63791.0,63790.0,0.01423514]
[1724462842225,0.125753,63791.0,63790.0,0.01423514]
[1724462842419,0.15114934,63791.0,63790.0,0.01423514]
[1724462843123,0.125753,63791.0,63790.0,0.01423514]
[1724462844025,0.15114655,63791.0,63790.0,0.01423514]
[1724462845121,0.15114963,63791.0,63790.0,0.01423514]
[1724462845423,0.125753,63791.0,63790.0,0.01423514]
[1724462845923,0.06318252,63791.0,63790.0,1.04114314]
[1724462846129,0.00104,63791.0,63790.0,0.09254914]
[1724462848227,0.00104,63791.0,63790.0,0.56282914]
[1724462848827,0.06317662,63791.0,63790.0,0.56282914]
[1724462849422,0.00104,63791.0,63790.0,0.56282914]
[1724462850427,0.04765156,63791.0,63790.0,0.56282914]
[1724462850729,0.00104,63791.0,63790.0,0.56282914]
[1724462850930,0.0476449,63791.0,63790.0,0.56282914]
[1724462851231,0.0476449,63791.0,63790.0,0.96282914]
[1724462851424,0.06317987,63791.0,63790.0,0.96282914]
[1724462852932,0.06317987,63791.0,63790.0,1.68442914]
[1724462852933,0.00104,63791.0,63790.0,1.68442914]
[1724462853835,0.00104,63791.0,63790.0,0.96282914]
[1724462854036,0.00104,63791.0,63790.0,1.68442914]
[1724462854231,0.00104,63791.0,63790.0,1.76274314]
[1724462857546,0.00104,63791.0,63790.0,0.87665511]
[1724462857752,0.00104,63791.0,63790.0,0.81414914]
[1724462860946,0.079353,63791.0,63790.0,0.01423514]
[1724462861143,0.223253,63791.0,63790.0,0.01423514]
[1724462861345,0.28539287,63791.0,63790.0,0.01423514]
[1724462861555,0.223253,63791.0,63790.0,0.01423514]
[1724462862960,1.093533,63791.0,63790.0,0.01423514]
[1724462863358,1.11892994,63791.0,63790.0,0.01423514]
[1724462863555,0.078324,63782.0,63781.0,0.0468887]
[1724462863867,0.078324,63782.0,63780.0,0.0468887]
[1724462864055,0.078324,63782.0,63779.0,0.078327]
[1724462864856,0.079324,63782.0,63781.0,0.01396]
[1724462865048,0.079324,63782.0,63781.0,0.37476]
[1724462865246,0.078324,63782.0,63781.0,0.3608]
[1724462865451,0.12590307,63782.0,63781.0,0.4176887]
[1724462865655,0.12690307,63782.0,63781.0,0.4176887]
[1724462865855,0.12690307,63782.0,63781.0,0.3708]
[1724462866261,0.080324,63782.0,63781.0,0.3708]
[1724462866466,0.12690032,63782.0,63781.0,0.3708]
[1724462866858,0.080324,63782.0,63781.0,0.3708]
[1724462867459,0.080324,63782.0,63781.0,0.3778]
[1724462868352,0.12690071,63782.0,63781.0,0.4246966]
[1724462868558,0.080324,63782.0,63781.0,0.3778]
[1724462868957,0.080324,63782.0,63781.0,0.4246966]
[1724462869160,0.080324,63782.0,63781.0,0.3778]
[1724462869757,0.080324,63782.0,63781.0,0.017]
[1724462870154,1.029008,63782.0,63777.0,0.0468966]
[1724462870354,0.48569665,63778.0,63777.0,0.04689634]
[1724462870664,0.078331,63776.0,63775.0,0.04689634]
[1724462870861,0.12489659,63776.0,63775.0,0.04689634]
[1724462871055,0.078332,63775.0,63774.0,0.00023514]
[1724462871251,0.07847145,63775.0,63774.0,0.00023514]
[1724462871660,0.06547145,63775.0,63774.0,0.00023514]
[1724462871865,0.06551145,63775.0,63774.0,0.00023514]
[1724462872264,0.06551145,63775.0,63774.0,0.0601289]
[1724462872465,0.06551145,63775.0,63774.0,0.01323514]
[1724462873066,0.06651145,63775.0,63774.0,0.06112809]
[1724462873266,0.06651145,63775.0,63774.0,0.01423514]
[1724462873870,0.06651145,63775.0,63774.0,0.06112809]
[1724462874065,0.06651145,63775.0,63774.0,0.01123514]
[1724462875667,0.06651145,63775.0,63774.0,0.05812809]
[1724462875868,0.07261493,63775.0,63774.0,0.01123514]
[1724462877465,0.07261493,63775.0,63774.0,0.05812809]
[1724462878072,0.07261493,63775.0,63774.0,0.01123514]
[1724462878470,0.07261493,63775.0,63774.0,0.05812809]
[1724462878769,0.07261493,63775.0,63774.0,0.05810771]
[1724462879161,0.07261493,63775.0,63774.0,0.01123514]
[1724462879467,0.07261493,63775.0,63774.0,0.05810771]
[1724462879664,0.07261493,63775.0,63774.0,0.01123514]
[1724462879865,0.07261493,63775.0,63774.0,0.05810771]
[1724462880068,0.07261493,63775.0,63774.0,0.05810792]
[1724462880267,0.07261493,63775.0,63774.0,0.01123514]
[1724462883273,0.07261493,63775.0,63774.0,0.08956814]
[1724462884272,0.07261493,63775.0,63774.0,0.15207411]
[1724462884866,0.07261493,63775.0,63774.0,0.08956814]
[1724462886066,0.07261493,63775.0,63774.0,0.1364608]
[1724462886273,0.07261493,63775.0,63774.0,0.08956814]
[1724462886666,0.00217945,63775.0,63774.0,0.08956814]
[1724462888276,0.00217945,63775.0,63774.0,0.15207411]
[1724462888483,0.00217945,63775.0,63774.0,0.08956814]
[1724462891276,0.00217945,63775.0,63774.0,0.28706086]
[1724462891671,0.00217945,63775.0,63774.0,1.15746086]
[1724462891974,0.00023514,63787.0,63774.0,1.15746086]
[1724462891975,0.06233208,63787.0,63774.0,0.13058572]
[1724462892167,0.00023514,63787.0,63786.0,0.7216]
[1724462892773,0.06209694,63791.0,63786.0,0.72164]
[1724462892982,0.06209694,63791.0,63790.0,0.2826229]
[1724462893176,0.07762117,63794.0,63790.0,0.22]
[1724462893379,0.078306,63797.0,63793.0,0.3608]
[1724462893582,0.06217737,63794.0,63793.0,0.3608]
[1724462894078,0.06217737,63795.0,63793.0,0.3608]
[1724462894378,0.08444804,63797.0,63793.0,0.3608]
[1724462895081,0.06217938,63796.0,63794.0,0.04693744]
[1724462895274,0.06217938,63799.0,63796.0,0.078346]
[1724462895673,0.07853714,63800.0,63796.0,0.078346]
[1724462895674,0.00023514,63800.0,63798.0,0.078303]
[1724462895877,0.00023514,63800.0,63799.0,0.3608]
[1724462896573,0.00023514,63800.0,63799.0,0.36084]
[1724462897078,0.00923514,63800.0,63799.0,0.36084]
[1724462897381,0.01533265,63800.0,63799.0,0.36084]
[1724462897878,0.01533265,63800.0,63799.0,0.439143]
[1724462899975,0.07741597,63800.0,63799.0,0.439143]
[1724462900483,0.00923514,63800.0,63799.0,0.439143]
[1724462900873,0.07131846,63800.0,63799.0,0.439143]
[1724462901378,0.00923514,63800.0,63799.0,0.439143]
[1724462901580,0.0557883,63800.0,63799.0,0.439143]
[1724462901884,0.00923514,63800.0,63799.0,0.439143]
[1724462903782,0.05578359,63800.0,63799.0,0.439143]
[1724462904175,0.00923514,63800.0,63799.0,0.439143]
[1724462904377,0.07131846,63800.0,63799.0,0.439143]
[1724462905380,0.055781,63800.0,63799.0,0.439143]
[1724462905578,0.00923514,63800.0,63799.0,0.439143]
[1724462910076,0.00923514,63800.0,63799.0,0.078343]
[1724462910273,0.00923514,63800.0,63799.0,0.439143]
[1724462912073,0.05579589,63800.0,63799.0,0.439143]
[1724462912272,0.00923514,63800.0,63799.0,0.439143]
[1724462913083,0.00923514,63800.0,63786.0,0.04693744]
[1724462913273,0.3608,63794.0,63790.0,0.078312]
[1724462913474,0.3608,63794.0,63785.0,0.3608]
[1724462913475,0.078313,63791.0,63786.0,0.078317]
[1724462913678,0.00591948,63790.0,63785.0,0.43908084]
[1724462913878,0.00591948,63790.0,63787.0,0.07855114]
[1724462914278,4e-05,63788.0,63787.0,0.07855114]
[1724462914480,4e-05,63788.0,63787.0,0.07955114]
[1724462915089,4e-05,63788.0,63787.0,0.07855114]
[1724462915287,4e-05,63788.0,63787.0,0.07955114]
[1724462916291,0.00104,63788.0,63787.0,0.07955114]
[1724462916489,0.00104,63788.0,63787.0,0.07855114]
[1724462916682,0.00204,63788.0,63787.0,0.07955114]
[1724462917292,0.00204,63788.0,63787.0,0.27715234]
[1724462918386,0.00204,63788.0,63787.0,0.1988715]
[1724462919491,0.00204,63788.0,63787.0,0.19886991]
[1724462921393,0.00204,63788.0,63787.0,0.29262887]
[1724462921695,0.00204,63788.0,63787.0,0.19886991]
[1724462923197,0.00204,63788.0,63787.0,0.55966991]
[1724462924093,0.0482,63799.0,63797.0,0.078305]
[1724462924291,0.0482,63799.0,63798.0,0.3608]
[1724462924686,0.0482,63799.0,63798.0,0.43900191]
[1724462925296,0.0512,63799.0,63798.0,0.36084]
[1724462925491,0.0522,63799.0,63798.0,0.36084]
[1724462925903,0.0542,63799.0,63798.0,0.439144]
[1724462927198,0.0532,63799.0,63798.0,0.439144]
[1724462927399,0.0552,63799.0,63798.0,0.439144]
[1724462928099,0.0552,63799.0,63798.0,0.51734591]
[1724462928300,0.0552,63799.0,63798.0,0.439144]
[1724462928503,0.0552,63799.0,63798.0,0.51734591]
[1724462928999,0.0552,63799.0,63798.0,0.439144]
[1724462931290,0.007,63799.0,63798.0,0.439144]
[1724462934408,0.007,63799.0,63798.0,0.51734591]
[1724462934703,0.007,63799.0,63798.0,0.439144]
[1724462934906,0.007,63799.0,63798.0,0.51734591]
[1724462935293,0.007,63799.0,63798.0,0.439144]
[1724462937203,0.00023514,63800.0,63798.0,1.38758591]
[1724462937404,0.12484646,63813.0,63809.0,0.07829]
[1724462937596,0.12484646,63813.0,63810.0,0.078289]
[1724462937597,0.078285,63813.0,63810.0,0.078289]
[1724462937794,0.0487,63815.0,63809.0,0.3608]
[1724462938008,0.0487,63815.0,63813.0,0.06248396]
[1724462938203,0.126983,63815.0,63813.0,0.06248396]
[1724462938502,0.126983,63815.0,63814.0,4e-05]
[1724462940200,0.140983,63815.0,63814.0,4e-05]
[1724462940604,0.154983,63815.0,63814.0,4e-05]
[1724462940807,0.140983,63815.0,63814.0,4e-05]
[1724462941007,0.154983,63815.0,63814.0,0.00104]
[1724462942002,0.16096852,63815.0,63814.0,0.00104]
[1724462946707,0.08268552,63815.0,63814.0,0.00104]
[1724462947003,0.03398552,63815.0,63814.0,0.299324]
[1724462948006,0.11226852,63815.0,63814.0,0.299324]
[1724462948612,0.11226852,63815.0,63814.0,0.079324]
[1724462951119,0.11226852,63815.0,63814.0,0.00104]
[1724462952107,0.19055152,63815.0,63814.0,0.00104]
[1724462955714,0.24015152,63815.0,63814.0,0.00104]
[1724462957308,0.28671298,63815.0,63814.0,0.00104]
[1724462958115,0.24015152,63815.0,63814.0,0.00104]
[1724462958317,1.11027152,63815.0,63814.0,0.00104]
[1724462958511,0.64015152,63815.0,63814.0,0.0468944]
[1724462958710,0.156576,63811.0,63810.0,0.06248396]
[1724462959415,1.026736,63811.0,63810.0,0.06248396]
[1724462959721,0.156578,63810.0,63809.0,0.06248396]
[1724462960111,0.626738,63810.0,63809.0,0.06248396]
[1724462960312,1.026738,63810.0,63809.0,0.06248396]
[1724462960511,0.626738,63810.0,63809.0,0.06248396]
[1724462960813,0.640738,63810.0,63809.0,0.06248396]
[1724462961316,1.040738,63810.0,63809.0,0.06248396]
[1724462961615,1.040738,63810.0,63808.0,0.00023514]
[1724462961616,0.15658,63809.0,63808.0,0.06278126]
[1724462961819,0.67340398,63809.0,63808.0,0.06278126]
[1724462962008,1.07340398,63809.0,63808.0,0.06278126]